[Event "GrandPrix_29.05"]
[Site "Chess.com"]
[Date "2020.05.29"]
[Round "1"]
[White "PresidenteMNE"]
[Black "VerdeNotte"]
[Result "1/2-1/2"]
[WhiteElo "2342"]
[BlackElo "2541"]
[TimeControl "600+2"]
[EndTime "9:26:40 PDT"]
[Termination "Game drawn by repetition"]

1. d4 {[%clk 0:09:57.1]} 1... Nf6 {[%clk 0:09:55.3]} 2. Bg5 {[%clk 0:09:57]}
2... d5 {[%clk 0:09:50.7]} 3. e3 {[%clk 0:09:54.3]} 3... c5 {[%clk 0:09:50.2]}
4. c3 {[%clk 0:09:50.9]} 4... Qb6 {[%clk 0:09:30.5]} 5. Qb3 {[%clk 0:08:42.4]}
5... c4 {[%clk 0:09:16.7]} 6. Qxb6 {[%clk 0:08:38.6]} 6... axb6 {[%clk
0:09:18.6]} 7. Nd2 {[%clk 0:08:32.1]} 7... b5 {[%clk 0:09:12.5]} 8. f3 {[%clk
0:08:04.6]} 8... e6 {[%clk 0:08:56]} 9. e4 {[%clk 0:08:05.3]} 9... b4 {[%clk
0:08:48.9]} 10. Nh3 {[%clk 0:07:46.4]} 10... Nc6 {[%clk 0:08:29.6]} 11. Nf4
{[%clk 0:07:29]} 11... Ra5 {[%clk 0:08:02.2]} 12. Be2 {[%clk 0:06:11.4]} 12...
Nd7 {[%clk 0:07:35.6]} 13. exd5 {[%clk 0:06:06.4]} 13... exd5 {[%clk 0:07:35]}
14. O-O {[%clk 0:05:57.7]} 14... h6 {[%clk 0:06:27.8]} 15. Bh4 {[%clk
0:05:57.9]} 15... g5 {[%clk 0:06:27.2]} 16. Nxd5 {[%clk 0:05:59.1]} 16... gxh4
{[%clk 0:05:48.3]} 17. Bxc4 {[%clk 0:05:50.7]} 17... bxc3 {[%clk 0:05:47.6]} 18.
bxc3 {[%clk 0:04:58.8]} 18... Kd8 {[%clk 0:05:16.7]} 19. a4 {[%clk 0:04:15.7]}
19... Ne7 {[%clk 0:04:40.2]} 20. Nb4 {[%clk 0:03:15.6]} 20... Nb6 {[%clk
0:04:00.9]} 21. Bb5 {[%clk 0:02:55.4]} 21... Bd7 {[%clk 0:03:51.5]} 22. c4
{[%clk 0:02:44.3]} 22... Nf5 {[%clk 0:03:37.7]} 23. Nc2 {[%clk 0:02:25.4]} 23...
Nxa4 {[%clk 0:03:05.1]} 24. Nb3 {[%clk 0:02:08.1]} 24... Rxb5 {[%clk 0:03:02]}
25. cxb5 {[%clk 0:02:07.2]} 25... Bxb5 {[%clk 0:03:03.4]} 26. Rfe1 {[%clk
0:01:58.8]} 26... Bg7 {[%clk 0:02:53.1]} 27. Na5 {[%clk 0:01:40.8]} 27... b6
{[%clk 0:02:45.6]} 28. Nc4 {[%clk 0:01:28.4]} 28... Nxd4 {[%clk 0:01:54.5]} 29.
Red1 {[%clk 0:00:31.8]} 29... Nc3 {[%clk 0:01:54]} 30. Rxd4+ {[%clk 0:00:26.2]}
30... Bxd4+ {[%clk 0:01:53.5]} 31. Nxd4 {[%clk 0:00:28.1]} 31... Kc7 {[%clk
0:01:14.3]} 32. Ra7+ {[%clk 0:00:26.8]} 32... Kb8 {[%clk 0:01:14.8]} 33. Nxb5
{[%clk 0:00:27]} 33... Nxb5 {[%clk 0:00:46.5]} 34. Rxf7 {[%clk 0:00:26.5]} 34...
Rc8 {[%clk 0:00:44.3]} 35. Nxb6 {[%clk 0:00:21.4]} 35... Rc1+ {[%clk 0:00:45.5]}
36. Kf2 {[%clk 0:00:20.8]} 36... Rc2+ {[%clk 0:00:47.1]} 37. Kf1 {[%clk
0:00:16.3]} 37... Nc3 {[%clk 0:00:31.5]} 38. Rh7 {[%clk 0:00:12.7]} 38... Nd1
{[%clk 0:00:25.9]} 39. Nd5 {[%clk 0:00:06.7]} 39... Rd2 {[%clk 0:00:25.8]} 40.
Nf4 {[%clk 0:00:02.1]} 40... Ne3+ {[%clk 0:00:25.4]} 41. Ke1 {[%clk 0:00:03.3]}
41... Rd6 {[%clk 0:00:19.4]} 42. g4 {[%clk 0:00:03.6]} 42... Rf6 {[%clk
0:00:17.8]} 43. Ke2 {[%clk 0:00:04.7]} 43... Nc2 {[%clk 0:00:16.1]} 44. Nd5
{[%clk 0:00:05.8]} 44... Rd6 {[%clk 0:00:14.7]} 45. Rh8+ {[%clk 0:00:05.9]}
45... Kb7 {[%clk 0:00:15.6]} 46. Rh7+ {[%clk 0:00:07.8]} 46... Ka6 {[%clk
0:00:14.2]} 47. Nc3 {[%clk 0:00:09]} 47... Re6+ {[%clk 0:00:12.3]} 48. Ne4
{[%clk 0:00:09.7]} 48... Kb5 {[%clk 0:00:12.9]} 49. Kd3 {[%clk 0:00:10.5]} 49...
Ne1+ {[%clk 0:00:13.4]} 50. Ke2 {[%clk 0:00:11.6]} 50... Ng2 {[%clk 0:00:14.5]}
51. Kf2 {[%clk 0:00:10.2]} 51... Nf4 {[%clk 0:00:15.8]} 52. Rg7 {[%clk
0:00:07.3]} 52... Kc4 {[%clk 0:00:15.3]} 53. g5 {[%clk 0:00:08.6]} 53... hxg5
{[%clk 0:00:10.8]} 54. Ke3 {[%clk 0:00:10]} 54... Nh3 {[%clk 0:00:09.8]} 55.
Rc7+ {[%clk 0:00:07.9]} 55... Kb4 {[%clk 0:00:11.2]} 56. Rg7 {[%clk 0:00:09.6]}
56... Re8 {[%clk 0:00:08.2]} 57. Kd4 {[%clk 0:00:08.2]} 57... Rd8+ {[%clk
0:00:04.6]} 58. Ke5 {[%clk 0:00:09.3]} 58... Rf8 {[%clk 0:00:05.8]} 59. Nxg5
{[%clk 0:00:09.7]} 59... Nxg5 {[%clk 0:00:06.6]} 60. Rxg5 {[%clk 0:00:11.6]}
60... Rxf3 {[%clk 0:00:08]} 61. Rg4+ {[%clk 0:00:13.3]} 61... Kc5 {[%clk
0:00:08.6]} 62. Rxh4 {[%clk 0:00:15.2]} 62... Kc6 {[%clk 0:00:08.1]} 63. Rh7
{[%clk 0:00:16.8]} 63... Re3+ {[%clk 0:00:07.8]} 64. Kf4 {[%clk 0:00:17.7]}
64... Re1 {[%clk 0:00:07.6]} 65. h4 {[%clk 0:00:19.6]} 65... Kd6 {[%clk
0:00:08.8]} 66. Kf5 {[%clk 0:00:20.7]} 66... Rf1+ {[%clk 0:00:09.7]} 67. Kg6
{[%clk 0:00:22.1]} 67... Ke6 {[%clk 0:00:10.4]} 68. Ra7 {[%clk 0:00:21.2]} 68...
Rg1+ {[%clk 0:00:11.9]} 69. Kh6 {[%clk 0:00:20.7]} 69... Kf6 {[%clk 0:00:12.7]}
70. h5 {[%clk 0:00:22]} 70... Rg2 {[%clk 0:00:14]} 71. Ra6+ {[%clk 0:00:22.6]}
71... Kf7 {[%clk 0:00:15.2]} 72. Rb6 {[%clk 0:00:22]} 72... Rh2 {[%clk
0:00:13.4]} 73. Rb8 {[%clk 0:00:21]} 73... Rh1 {[%clk 0:00:13.9]} 74. Rb7+
{[%clk 0:00:19.9]} 74... Kg8 {[%clk 0:00:14.8]} 75. Rb8+ {[%clk 0:00:19.6]}
75... Kf7 {[%clk 0:00:15.9]} 76. Rc8 {[%clk 0:00:19.9]} 76... Rh2 {[%clk
0:00:16.6]} 77. Rc6 {[%clk 0:00:20.2]} 77... Kg8 {[%clk 0:00:17.4]} 78. Rg6+
{[%clk 0:00:20.5]} 78... Kh8 {[%clk 0:00:18.6]} 79. Rg5 {[%clk 0:00:21]} 79...
Ra2 {[%clk 0:00:18.3]} 80. Rg6 {[%clk 0:00:19]} 80... Ra5 {[%clk 0:00:16.7]} 81.
Rb6 {[%clk 0:00:18.8]} 81... Ra8 {[%clk 0:00:16.5]} 82. Kg6 {[%clk 0:00:19.1]}
82... Rg8+ {[%clk 0:00:17.4]} 83. Kh6 {[%clk 0:00:20]} 83... Ra8 {[%clk
0:00:19.3]} 84. Rb7 {[%clk 0:00:19.9]} 84... Ra6+ {[%clk 0:00:20.2]} 85. Kg5
{[%clk 0:00:20.6]} 85... Ra5+ {[%clk 0:00:21.8]} 86. Kg6 {[%clk 0:00:21.9]}
86... Ra6+ {[%clk 0:00:23.3]} 87. Kg5 {[%clk 0:00:23.4]} 87... Ra5+ {[%clk
0:00:24.7]} 88. Kg6 {[%clk 0:00:24.7]} 88... Ra6+ {[%clk 0:00:25.9]} 89. Kg5
{[%clk 0:00:25.9]} 1/2-1/2

[Event "GrandPrix_29.05"]
[Site "Chess.com"]
[Date "2020.05.29"]
[Round "1"]
[White "PotapovaM"]
[Black "GM_dmitrij"]
[Result "1/2-1/2"]
[WhiteElo "2193"]
[BlackElo "2555"]
[TimeControl "600+2"]
[EndTime "9:26:50 PDT"]
[Termination "Game drawn by repetition"]

1. d4 {[%clk 0:10:01.9]} 1... Nf6 {[%clk 0:10:00.6]} 2. c4 {[%clk 0:09:56.6]}
2... e6 {[%clk 0:10:00.7]} 3. Nf3 {[%clk 0:09:56.7]} 3... b6 {[%clk 0:10:01]} 4.
a3 {[%clk 0:09:54.9]} 4... Ba6 {[%clk 0:09:53.5]} 5. Qc2 {[%clk 0:09:44]} 5...
Bb7 {[%clk 0:09:51.5]} 6. Nc3 {[%clk 0:09:38.3]} 6... c5 {[%clk 0:09:42.3]} 7.
e4 {[%clk 0:09:38]} 7... cxd4 {[%clk 0:09:42.7]} 8. Nxd4 {[%clk 0:09:39.9]} 8...
Bc5 {[%clk 0:09:43.5]} 9. Nb3 {[%clk 0:09:38.2]} 9... Nc6 {[%clk 0:09:43.8]} 10.
Bf4 {[%clk 0:09:23.2]} 10... e5 {[%clk 0:09:40.8]} 11. Bg5 {[%clk 0:09:18.4]}
11... d6 {[%clk 0:09:40.3]} 12. Be2 {[%clk 0:09:13]} 12... h6 {[%clk 0:08:35.8]}
13. Bxf6 {[%clk 0:08:28.5]} 13... Qxf6 {[%clk 0:08:32.3]} 14. O-O {[%clk
0:08:29.9]} 14... O-O {[%clk 0:08:13.1]} 15. Nd5 {[%clk 0:08:24.2]} 15... Qg6
{[%clk 0:07:03.6]} 16. Rad1 {[%clk 0:07:57.9]} 16... Kh8 {[%clk 0:06:57]} 17.
Bf3 {[%clk 0:05:48.3]} 17... a5 {[%clk 0:06:35.3]} 18. a4 {[%clk 0:05:34.9]}
18... Rac8 {[%clk 0:05:24.3]} 19. Nc1 {[%clk 0:04:04]} 19... Qg5 {[%clk
0:03:54.9]} 20. Ne2 {[%clk 0:04:00.7]} 20... f5 {[%clk 0:03:16]} 21. b3 {[%clk
0:03:15.1]} 21... g6 {[%clk 0:01:52.9]} 22. Qd2 {[%clk 0:02:41.6]} 22... Rf7
{[%clk 0:01:38.6]} 23. Ndc3 {[%clk 0:01:20.7]} 23... Rcf8 {[%clk 0:01:17.5]} 24.
exf5 {[%clk 0:01:14.7]} 24... gxf5 {[%clk 0:01:04.4]} 25. Bd5 {[%clk 0:01:10.3]}
25... Rg7 {[%clk 0:00:58.4]} 26. Qxg5 {[%clk 0:01:06.4]} 26... hxg5 {[%clk
0:01:00.3]} 27. Nb5 {[%clk 0:00:58.5]} 27... Rf6 {[%clk 0:00:55.2]} 28. g3
{[%clk 0:00:51.9]} 28... Rh7 {[%clk 0:00:50.8]} 29. Kg2 {[%clk 0:00:50.8]} 29...
Rfh6 {[%clk 0:00:47.8]} 30. Rh1 {[%clk 0:00:51.7]} 30... g4 {[%clk 0:00:49.3]}
31. Nec3 {[%clk 0:00:32.3]} 31... Re7 {[%clk 0:00:26.9]} 32. Rd2 {[%clk
0:00:23.6]} 32... Kg7 {[%clk 0:00:26.7]} 33. h3 {[%clk 0:00:22.1]} 33... gxh3+
{[%clk 0:00:27.4]} 34. Rxh3 {[%clk 0:00:24]} 34... Rxh3 {[%clk 0:00:28.8]} 35.
Kxh3 {[%clk 0:00:25.9]} 35... Kf6 {[%clk 0:00:30.4]} 36. Kg2 {[%clk 0:00:25.4]}
36... Rg7 {[%clk 0:00:20.1]} 37. f3 {[%clk 0:00:21.7]} 37... Bb4 {[%clk
0:00:17.5]} 38. Bxc6 {[%clk 0:00:14.5]} 38... Bxc6 {[%clk 0:00:17.9]} 39. Nd5+
{[%clk 0:00:14.9]} 39... Bxd5 {[%clk 0:00:15]} 40. Rxd5 {[%clk 0:00:16.8]} 40...
Ke6 {[%clk 0:00:16.6]} 41. Rd1 {[%clk 0:00:11.1]} 41... Rh7 {[%clk 0:00:08.4]}
42. Rf1 {[%clk 0:00:06.9]} 42... d5 {[%clk 0:00:09.5]} 43. cxd5+ {[%clk
0:00:07.3]} 43... Kxd5 {[%clk 0:00:11.4]} 44. Rd1+ {[%clk 0:00:08.9]} 44... Ke6
{[%clk 0:00:12.9]} 45. Rc1 {[%clk 0:00:09.9]} 45... Bc5 {[%clk 0:00:14]} 46. Rd1
{[%clk 0:00:08.9]} 46... e4 {[%clk 0:00:12.2]} 47. fxe4 {[%clk 0:00:10.1]} 47...
fxe4 {[%clk 0:00:14.1]} 48. Re1 {[%clk 0:00:11.8]} 48... Ke5 {[%clk 0:00:11.3]}
49. Nc3 {[%clk 0:00:09.9]} 49... Kd4 {[%clk 0:00:11.4]} 50. Nxe4 {[%clk
0:00:06.1]} 50... Re7 {[%clk 0:00:11.9]} 51. Kf3 {[%clk 0:00:07.4]} 51... Rf7+
{[%clk 0:00:11.2]} 52. Kg4 {[%clk 0:00:08.3]} 52... Re7 {[%clk 0:00:11.7]} 53.
Kf3 {[%clk 0:00:09.7]} 53... Rf7+ {[%clk 0:00:13.1]} 54. Kg4 {[%clk 0:00:11]}
54... Bb4 {[%clk 0:00:14.1]} 55. Ng5 {[%clk 0:00:08.3]} 55... Rb7 {[%clk
0:00:08.5]} 56. Re4+ {[%clk 0:00:06]} 56... Kc3 {[%clk 0:00:09.4]} 57. Re3+
{[%clk 0:00:06.8]} 57... Kc2 {[%clk 0:00:10.8]} 58. Ne6 {[%clk 0:00:06.2]} 58...
Kb2 {[%clk 0:00:09.8]} 59. Kf5 {[%clk 0:00:06.2]} 59... Bc3 {[%clk 0:00:10.2]}
60. g4 {[%clk 0:00:03.7]} 60... Kxb3 {[%clk 0:00:11.3]} 61. g5 {[%clk
0:00:04.9]} 61... Kb4 {[%clk 0:00:11.7]} 62. g6 {[%clk 0:00:04.7]} 62... Ba1
{[%clk 0:00:12.1]} 63. Re4+ {[%clk 0:00:04.9]} 63... Ka3 {[%clk 0:00:13]} 64.
Nd4 {[%clk 0:00:04.5]} 64... Bb2 {[%clk 0:00:09.8]} 65. Nb5+ {[%clk 0:00:02.9]}
65... Ka2 {[%clk 0:00:09.4]} 66. Ke6 {[%clk 0:00:04.5]} 66... Rb8 {[%clk
0:00:09.2]} 67. Kf7 {[%clk 0:00:05.6]} 67... Rb7+ {[%clk 0:00:09.9]} 68. Ke6
{[%clk 0:00:05.6]} 68... Rg7 {[%clk 0:00:10.3]} 69. Kf5 {[%clk 0:00:06.4]} 69...
Rg8 {[%clk 0:00:11.8]} 70. Rg4 {[%clk 0:00:06.2]} 70... Kb3 {[%clk 0:00:12.4]}
71. Ke6 {[%clk 0:00:07.3]} 71... Rg7 {[%clk 0:00:13.1]} 72. Kf5 {[%clk
0:00:08.1]} 72... Ba1 {[%clk 0:00:13.3]} 73. Ke6 {[%clk 0:00:09.1]} 73... Bb2
{[%clk 0:00:13.9]} 74. Nd6 {[%clk 0:00:09.7]} 74... Bc3 {[%clk 0:00:12.2]} 75.
Nf5 {[%clk 0:00:09.2]} 75... Rg8 {[%clk 0:00:13.5]} 76. Kf7 {[%clk 0:00:09.3]}
76... Rb8 {[%clk 0:00:12.4]} 77. Nd4+ {[%clk 0:00:07.4]} 77... Bxd4 {[%clk
0:00:06.4]} 78. Rxd4 {[%clk 0:00:09.3]} 78... b5 {[%clk 0:00:07.9]} 79. axb5
{[%clk 0:00:08.5]} 79... Rb7+ {[%clk 0:00:08]} 80. Kf6 {[%clk 0:00:07.4]} 80...
Rb6+ {[%clk 0:00:08.6]} 81. Kf7 {[%clk 0:00:07.7]} 81... Rb7+ {[%clk 0:00:10.1]}
82. Kf6 {[%clk 0:00:08.8]} 82... Rb6+ {[%clk 0:00:11.4]} 83. Kf7 {[%clk
0:00:10.2]} 83... Rb7+ {[%clk 0:00:12.8]} 1/2-1/2

[Event "GrandPrix_29.05"]
[Site "Chess.com"]
[Date "2020.05.29"]
[Round "1"]
[White "BMOchsner"]
[Black "OK97"]
[Result "0-1"]
[WhiteElo "2041"]
[BlackElo "2509"]
[TimeControl "600+2"]
[EndTime "9:26:57 PDT"]
[Termination "OK97 won on time"]

1. e4 {[%clk 0:09:53.9]} 1... c5 {[%clk 0:09:59.6]} 2. Nf3 {[%clk 0:09:52.8]}
2... d6 {[%clk 0:10:00]} 3. d4 {[%clk 0:09:46.9]} 3... cxd4 {[%clk 0:10:00.9]}
4. Nxd4 {[%clk 0:09:48.5]} 4... Nf6 {[%clk 0:10:01.3]} 5. Nc3 {[%clk 0:09:48.7]}
5... Bd7 {[%clk 0:09:57.3]} 6. Be2 {[%clk 0:08:47]} 6... Nc6 {[%clk 0:09:20]} 7.
Be3 {[%clk 0:08:46.2]} 7... e6 {[%clk 0:08:46.2]} 8. Qd2 {[%clk 0:08:31.8]} 8...
Be7 {[%clk 0:08:18.1]} 9. O-O {[%clk 0:05:36.3]} 9... O-O {[%clk 0:07:56.2]} 10.
f4 {[%clk 0:05:08]} 10... e5 {[%clk 0:07:03.9]} 11. Nxc6 {[%clk 0:05:05.5]}
11... Bxc6 {[%clk 0:07:03.9]} 12. Bf3 {[%clk 0:05:00.9]} 12... exf4 {[%clk
0:06:08.5]} 13. Bxf4 {[%clk 0:04:39.8]} 13... Qb6+ {[%clk 0:06:09.5]} 14. Be3
{[%clk 0:04:28.1]} 14... Qc7 {[%clk 0:05:28.6]} 15. a4 {[%clk 0:04:01.7]} 15...
a6 {[%clk 0:04:19.5]} 16. Kh1 {[%clk 0:03:31.4]} 16... Rfe8 {[%clk 0:03:58.2]}
17. Rfe1 {[%clk 0:02:42.2]} 17... Rac8 {[%clk 0:03:29.4]} 18. a5 {[%clk
0:01:41.4]} 18... Nd7 {[%clk 0:03:29.4]} 19. Bd4 {[%clk 0:00:52.4]} 19... Ne5
{[%clk 0:03:21.6]} 20. Be2 {[%clk 0:00:42.9]} 20... Bf8 {[%clk 0:03:04.8]} 21.
Bb6 {[%clk 0:00:42.3]} 21... Qe7 {[%clk 0:02:37.7]} 22. Nd5 {[%clk 0:00:42.6]}
22... Qh4 {[%clk 0:02:38.8]} 23. Bf3 {[%clk 0:00:13.4]} 23... Re6 {[%clk
0:01:43.1]} 24. Bf2 {[%clk 0:00:12.2]} 24... Nxf3 {[%clk 0:01:44]} 25. gxf3
{[%clk 0:00:10.2]} 25... Qh5 {[%clk 0:01:42.7]} 26. Re3 {[%clk 0:00:04.1]} 26...
Bxd5 {[%clk 0:01:35.4]} 27. exd5 {[%clk 0:00:04.9]} 27... Rxe3 {[%clk
0:01:31.2]} 28. Qxe3 {[%clk 0:00:04.2]} 28... Qxd5 {[%clk 0:01:28.8]} 29. c3
{[%clk 0:00:03.8]} 29... g6 {[%clk 0:01:25]} 30. Kg2 {[%clk 0:00:04.9]} 30...
Rc4 {[%clk 0:01:06]} 31. Re1 {[%clk 0:00:03.8]} 31... Qxa5 {[%clk 0:00:56.4]}
32. Qd3 {[%clk 0:00:04.9]} 32... Rc8 {[%clk 0:00:52.7]} 33. Bg3 {[%clk
0:00:03.6]} 33... Qg5 {[%clk 0:00:50]} 34. Re2 {[%clk 0:00:04.5]} 34... h5
{[%clk 0:00:48.7]} 35. h4 {[%clk 0:00:05]} 35... Qf6 {[%clk 0:00:50.2]} 36. Rd2
{[%clk 0:00:05]} 36... Re8 {[%clk 0:00:47.2]} 37. Qd5 {[%clk 0:00:05.6]} 37...
b5 {[%clk 0:00:46]} 38. Qc6 {[%clk 0:00:06.1]} 38... Re3 {[%clk 0:00:44.4]} 39.
Bf2 {[%clk 0:00:06.8]} 39... Re6 {[%clk 0:00:34.3]} 40. Qxa6 {[%clk 0:00:07.6]}
40... Bh6 {[%clk 0:00:32.1]} 41. Rd3 {[%clk 0:00:05]} 41... Qf5 {[%clk
0:00:25.2]} 42. Qa8+ {[%clk 0:00:04.9]} 42... Kh7 {[%clk 0:00:25.2]} 43. Qd5
{[%clk 0:00:06]} 43... Qxd5 {[%clk 0:00:20.2]} 44. Rxd5 {[%clk 0:00:07.2]} 44...
Re2 {[%clk 0:00:22.1]} 45. Kf1 {[%clk 0:00:05.8]} 45... Rxb2 {[%clk 0:00:23.1]}
46. Rxd6 {[%clk 0:00:07.3]} 46... Bg7 {[%clk 0:00:24]} 47. Bd4 {[%clk
0:00:08.6]} 47... Rh2 {[%clk 0:00:17.8]} 48. Bxg7 {[%clk 0:00:08]} 48... Kxg7
{[%clk 0:00:19.7]} 49. Rd4 {[%clk 0:00:09]} 49... Rc2 {[%clk 0:00:19.8]} 50. Rd3
{[%clk 0:00:09.2]} 50... Kf6 {[%clk 0:00:20.8]} 51. Kg1 {[%clk 0:00:10.6]} 51...
Kf5 {[%clk 0:00:17.7]} 52. Rd7 {[%clk 0:00:11.7]} 52... f6 {[%clk 0:00:17.7]}
53. Rd5+ {[%clk 0:00:12.6]} 53... Kf4 {[%clk 0:00:18.9]} 54. Rxb5 {[%clk
0:00:13.9]} 54... Rxc3 {[%clk 0:00:13.2]} 55. Rb6 {[%clk 0:00:14.6]} 55... Kg3
{[%clk 0:00:12.7]} 56. Kf1 {[%clk 0:00:15.4]} 56... Rxf3+ {[%clk 0:00:13.8]} 57.
Ke2 {[%clk 0:00:16.7]} 57... Rf4 {[%clk 0:00:14.4]} 58. Ke3 {[%clk 0:00:17.2]}
58... Rxh4 {[%clk 0:00:14.4]} 59. Rxf6 {[%clk 0:00:18]} 59... Rg4 {[%clk
0:00:15.9]} 60. Rf3+ {[%clk 0:00:18.7]} 60... Kh4 {[%clk 0:00:16.5]} 61. Kf2
{[%clk 0:00:20]} 61... Kg5 {[%clk 0:00:17.5]} 62. Rb3 {[%clk 0:00:21]} 62... h4
{[%clk 0:00:18.7]} 63. Rb5+ {[%clk 0:00:22.1]} 63... Kh6 {[%clk 0:00:19.7]} 64.
Rb3 {[%clk 0:00:23.4]} 64... g5 {[%clk 0:00:20.6]} 65. Rb5 {[%clk 0:00:24.2]}
65... Kh5 {[%clk 0:00:21.5]} 66. Rb8 {[%clk 0:00:25.2]} 66... Rf4+ {[%clk
0:00:22.9]} 67. Kg2 {[%clk 0:00:26.1]} 67... Kg4 {[%clk 0:00:24.8]} 68. Rc8
{[%clk 0:00:26.7]} 68... Ra4 {[%clk 0:00:25.6]} 69. Rc2 {[%clk 0:00:26.9]} 69...
h3+ {[%clk 0:00:26.2]} 70. Kh2 {[%clk 0:00:28.1]} 70... Kh4 {[%clk 0:00:26.6]}
71. Rb2 {[%clk 0:00:29.2]} 71... g4 {[%clk 0:00:25]} 72. Rb1 {[%clk 0:00:27]}
72... Ra2+ {[%clk 0:00:25.4]} 73. Kh1 {[%clk 0:00:28.2]} 73... Rc2 {[%clk
0:00:26]} 74. Ra1 {[%clk 0:00:28.8]} 74... Rc4 {[%clk 0:00:24]} 75. Rb1 {[%clk
0:00:29.7]} 75... g3 {[%clk 0:00:24.8]} 76. Ra1 {[%clk 0:00:29.9]} 76... Rf4
{[%clk 0:00:20.1]} 77. Rb1 {[%clk 0:00:30.1]} 77... g2+ {[%clk 0:00:17.9]} 78.
Kh2 {[%clk 0:00:22.1]} 78... Rf1 {[%clk 0:00:18.3]} 79. Rb4+ {[%clk 0:00:22.9]}
79... Kg5 {[%clk 0:00:06.9]} 80. Rb5+ {[%clk 0:00:18.8]} 80... Kg6 {[%clk
0:00:07.6]} 81. Rb6+ {[%clk 0:00:17]} 81... Kf7 {[%clk 0:00:08.6]} 82. Rb7+
{[%clk 0:00:13]} 82... Ke8 {[%clk 0:00:09.7]} 0-1

[Event "GrandPrix_29.05"]
[Site "Chess.com"]
[Date "2020.05.29"]
[Round "1"]
[White "vagpat"]
[Black "Rakhmanov_Aleksandr"]
[Result "0-1"]
[WhiteElo "2208"]
[BlackElo "1882"]
[TimeControl "600+2"]
[EndTime "9:26:57 PDT"]
[Termination "Rakhmanov_Aleksandr won by resignation"]

1. e4 {[%clk 0:10:01.4]} 1... c5 {[%clk 0:09:59.7]} 2. Nf3 {[%clk 0:10:01.6]}
2... Nf6 {[%clk 0:09:59.8]} 3. e5 {[%clk 0:09:49.2]} 3... Nd5 {[%clk 0:09:56.9]}
4. Nc3 {[%clk 0:09:48.1]} 4... Nxc3 {[%clk 0:09:55.4]} 5. dxc3 {[%clk
0:09:45.1]} 5... Nc6 {[%clk 0:09:52.8]} 6. Bc4 {[%clk 0:09:16.5]} 6... e6 {[%clk
0:09:49.6]} 7. O-O {[%clk 0:09:06.8]} 7... Qc7 {[%clk 0:09:33.1]} 8. Qe2 {[%clk
0:08:50.8]} 8... b6 {[%clk 0:09:32.8]} 9. Bf4 {[%clk 0:08:34.5]} 9... h6 {[%clk
0:09:18.7]} 10. Rad1 {[%clk 0:08:16.2]} 10... Bb7 {[%clk 0:09:18.7]} 11. Ba6
{[%clk 0:07:46.9]} 11... Bxa6 {[%clk 0:08:28.1]} 12. Qxa6 {[%clk 0:07:48.8]}
12... f5 {[%clk 0:08:26.6]} 13. h4 {[%clk 0:06:38.8]} 13... Be7 {[%clk
0:07:24.6]} 14. h5 {[%clk 0:06:38.4]} 14... Bg5 {[%clk 0:07:22.5]} 15. Bh2
{[%clk 0:06:19.6]} 15... O-O {[%clk 0:06:28]} 16. Qd3 {[%clk 0:05:20.8]} 16...
Rf7 {[%clk 0:06:14.7]} 17. Rfe1 {[%clk 0:05:07.8]} 17... Qd8 {[%clk 0:05:47.5]}
18. Qe2 {[%clk 0:04:53.9]} 18... Qe8 {[%clk 0:05:41.8]} 19. Rd6 {[%clk
0:04:29.1]} 19... Re7 {[%clk 0:05:18.3]} 20. Red1 {[%clk 0:04:28.1]} 20... Qxh5
{[%clk 0:05:10.8]} 21. Rxd7 {[%clk 0:04:26]} 21... Rxd7 {[%clk 0:04:59.8]} 22.
Rxd7 {[%clk 0:04:27.9]} 22... Qe8 {[%clk 0:03:54.9]} 23. Rd6 {[%clk 0:03:54.3]}
23... Be7 {[%clk 0:03:50]} 24. Rd3 {[%clk 0:03:16.9]} 24... g5 {[%clk
0:03:22.5]} 25. Nd2 {[%clk 0:03:12.7]} 25... Rd8 {[%clk 0:03:20.1]} 26. a4
{[%clk 0:02:58.8]} 26... Rxd3 {[%clk 0:02:58.3]} 27. Qxd3 {[%clk 0:02:57.4]}
27... Qd8 {[%clk 0:02:58]} 28. Qe2 {[%clk 0:02:25.1]} 28... Qd5 {[%clk
0:02:48.8]} 29. Nc4 {[%clk 0:02:23.3]} 29... Kg7 {[%clk 0:02:40.3]} 30. b3
{[%clk 0:02:03.5]} 30... Kg6 {[%clk 0:02:34.8]} 31. g4 {[%clk 0:01:39.7]} 31...
f4 {[%clk 0:02:17.3]} 32. f3 {[%clk 0:00:53.8]} 32... Bf8 {[%clk 0:02:16.1]} 33.
Kg2 {[%clk 0:00:53.3]} 33... Bg7 {[%clk 0:02:14.9]} 34. Bg1 {[%clk 0:00:54.4]}
34... Bxe5 {[%clk 0:01:58.6]} 35. Qe1 {[%clk 0:00:54.7]} 35... Bf6 {[%clk
0:01:37.1]} 36. Bf2 {[%clk 0:00:37.7]} 36... Ne5 {[%clk 0:01:33.4]} 37. Nxe5+
{[%clk 0:00:37.8]} 37... Qxe5 {[%clk 0:01:35.3]} 38. Qf1 {[%clk 0:00:26.9]}
38... Qxc3 {[%clk 0:01:26.8]} 39. Qb5 {[%clk 0:00:23.6]} 39... Qxc2 {[%clk
0:00:42.5]} 40. Qe8+ {[%clk 0:00:20.9]} 40... Kh7 {[%clk 0:00:38.5]} 41. Qxe6
{[%clk 0:00:15.5]} 41... Bg7 {[%clk 0:00:23.4]} 42. Qf7 {[%clk 0:00:12.8]} 42...
a5 {[%clk 0:00:21.4]} 43. Qe6 {[%clk 0:00:08.3]} 43... Qg6 {[%clk 0:00:21.2]}
44. Qd5 {[%clk 0:00:08.6]} 44... h5 {[%clk 0:00:19.7]} 45. gxh5 {[%clk 0:00:09]}
45... Qxh5 {[%clk 0:00:21.6]} 46. Qf5+ {[%clk 0:00:07.9]} 46... Qg6 {[%clk
0:00:22.2]} 47. Qh3+ {[%clk 0:00:08.9]} 47... Qh6 {[%clk 0:00:21.7]} 48. Qf5+
{[%clk 0:00:09.8]} 48... Qg6 {[%clk 0:00:23.1]} 49. Qh3+ {[%clk 0:00:10.8]}
49... Kg8 {[%clk 0:00:22.9]} 50. Qc8+ {[%clk 0:00:11.3]} 50... Bf8 {[%clk
0:00:24.3]} 51. Qd7 {[%clk 0:00:10.9]} 51... Qf6 {[%clk 0:00:18.9]} 52. Kg1
{[%clk 0:00:05.9]} 52... Be7 {[%clk 0:00:17.8]} 53. Qc8+ {[%clk 0:00:06.1]}
53... Kf7 {[%clk 0:00:15.8]} 54. Qd7 {[%clk 0:00:04]} 54... Qe6 {[%clk
0:00:16.4]} 55. Qd3 {[%clk 0:00:04.3]} 55... Kg7 {[%clk 0:00:16.5]} 56. Kg2
{[%clk 0:00:05]} 56... Bf6 {[%clk 0:00:17.2]} 57. Qa6 {[%clk 0:00:05.3]} 57...
g4 {[%clk 0:00:17.5]} 58. Qb7+ {[%clk 0:00:06.5]} 58... Kg6 {[%clk 0:00:17.8]}
59. fxg4 {[%clk 0:00:05]} 59... Qxg4+ {[%clk 0:00:19.7]} 60. Kf1 {[%clk
0:00:06.3]} 60... f3 {[%clk 0:00:19]} 61. Qxb6 {[%clk 0:00:06.3]} 61... Qg2+
{[%clk 0:00:11.7]} 62. Ke1 {[%clk 0:00:07.5]} 62... Qh1+ {[%clk 0:00:13.1]} 63.
Kd2 {[%clk 0:00:08.2]} 63... Qf1 {[%clk 0:00:09.8]} 64. Qxc5 {[%clk 0:00:06.1]}
64... Qe2+ {[%clk 0:00:10.5]} 65. Kc1 {[%clk 0:00:07.4]} 65... Qb2+ {[%clk
0:00:09.1]} 66. Kd1 {[%clk 0:00:08.4]} 66... Qxb3+ {[%clk 0:00:10.5]} 67. Qc2+
{[%clk 0:00:04.3]} 67... Qxc2+ {[%clk 0:00:11.7]} 68. Kxc2 {[%clk 0:00:06.2]}
68... Kf5 {[%clk 0:00:12]} 69. Kd2 {[%clk 0:00:06.8]} 69... Ke4 {[%clk
0:00:12.3]} 70. Bb6 {[%clk 0:00:07.4]} 70... Kf4 {[%clk 0:00:05.4]} 71. Bxa5
{[%clk 0:00:04.5]} 71... Kg3 {[%clk 0:00:06.6]} 72. Bb6 {[%clk 0:00:04.6]} 72...
Be7 {[%clk 0:00:07.5]} 73. Kd3 {[%clk 0:00:04.3]} 73... Bb4 {[%clk 0:00:08.3]}
74. Bc7+ {[%clk 0:00:03.9]} 74... Kg2 {[%clk 0:00:09.4]} 75. Bb6 {[%clk
0:00:05.8]} 75... Ba5 {[%clk 0:00:09.7]} 76. Bc5 {[%clk 0:00:06.5]} 76... Be1
{[%clk 0:00:10.6]} 77. Bb6 {[%clk 0:00:04.4]} 77... Bb4 {[%clk 0:00:09.9]} 78.
Bd4 {[%clk 0:00:04.1]} 78... Ba5 {[%clk 0:00:11.3]} 79. Bc5 {[%clk 0:00:05.3]}
79... Bc7 {[%clk 0:00:12.7]} 80. Bd4 {[%clk 0:00:06.4]} 80... Bh2 {[%clk
0:00:13.8]} 81. a5 {[%clk 0:00:06.9]} 81... Bg1 {[%clk 0:00:15.2]} 82. Bf6
{[%clk 0:00:07.6]} 82... f2 {[%clk 0:00:16]} 83. a6 {[%clk 0:00:07.1]} 83...
f1=Q+ {[%clk 0:00:17.5]} 0-1